bitfinex-derivatives/quotes_BTCF0:USTF0_20210108
["timestamp","ask_amount","ask_price","bid_price","bid_amount"]
[1610104811446,0.09184,41032.0,40979.0,0.10986]
[1610104811447,0.09184,41032.0,41027.0,0.13632608]
[1610104811845,0.09184,41032.0,40992.0,0.00028924]
[1610104812045,0.09184,41032.0,40979.0,0.10986]
[1610104812246,0.09184,41032.0,40993.0,0.00028925]
[1610104812445,0.09184,41032.0,40987.0,0.00028927]
[1610104814647,0.2745,41040.0,40969.0,0.11506]
[1610104815248,0.2745,41040.0,40980.0,0.11872]
[1610104815447,0.13632608,41008.0,41000.0,0.13632608]
[1610104815657,0.25226608,41008.0,41000.0,0.13632608]
[1610104819356,0.25226608,41008.0,41007.0,0.13632608]
[1610104819756,0.11594,41008.0,41007.0,0.13632608]
[1610104820756,0.2745,41040.0,41007.0,0.13632608]
[1610104821156,1.7745,41040.0,41007.0,0.13632608]
[1610104821357,0.13632608,41008.0,41007.0,0.13632608]
[1610104821558,0.26327608,41008.0,41007.0,0.13632608]
[1610104822558,0.12695,41008.0,41007.0,0.13632608]
[1610104823158,0.2745,41040.0,41007.0,0.13632608]
[1610104823359,3.67154608,41073.0,40987.0,0.1569]
[1610104823360,0.12167,41008.0,40987.0,0.1569]
[1610104823758,0.08183,41021.0,40987.0,0.1569]
[1610104824161,0.08183,41021.0,40987.0,0.25284]
[1610104824364,0.29,41072.0,40988.0,1.5]
[1610104824559,0.29,41072.0,40988.0,1.50028924]
[1610104824760,0.02694608,41073.0,40988.0,1.50028924]
[1610104824960,0.2948,41111.0,40989.0,0.00028924]
[1610104825160,0.2948,41111.0,40993.0,2.23150484]
[1610104825359,0.13632608,41109.0,41102.0,0.13632608]
[1610104825565,0.13632608,41109.0,41002.0,2.22581515]
[1610104825764,0.13632608,41109.0,41007.0,2.22104114]
[1610104825960,0.13632608,41109.0,41008.0,1.5]
[1610104826164,0.13632608,41109.0,41008.0,3.83340052]
[1610104826363,0.13632608,41109.0,41010.0,2.22048923]
[1610104826562,0.13632608,41109.0,41011.0,1.5]
[1610104826761,0.13632608,41109.0,41014.0,2.21517817]
[1610104826964,0.13632608,41109.0,41012.0,0.1569]
[1610104826965,0.13632608,41109.0,41019.0,2.21067695]
[1610104827165,0.2948,41111.0,41020.0,1.5]
[1610104827366,0.2948,41111.0,41095.0,0.13632608]
[1610104827765,0.21533608,41116.0,41095.0,0.13632608]
[1610104828564,0.21533608,41116.0,41064.0,0.10457]
[1610104829368,0.00029812,41115.0,41112.0,0.13632608]
[1610104829966,0.21533608,41116.0,41112.0,0.13632608]
[1610104833368,0.21533608,41116.0,41074.0,0.10491]
[1610104835370,0.13632608,41103.0,41091.0,0.13632608]
[1610104835770,0.22308608,41103.0,41091.0,0.13632608]
[1610104835970,0.08676,41103.0,41091.0,0.13632608]
[1610104837374,0.08676,41103.0,41102.0,0.13632608]
[1610104837773,0.08676,41103.0,41074.0,0.10491]
[1610104838175,0.08676,41103.0,41064.0,0.10457]
[1610104838374,0.08676,41103.0,41037.0,2.18535557]
[1610104838575,0.08676,41103.0,41033.0,0.2732]
[1610104838976,0.08676,41103.0,41034.0,0.00028938]
[1610104839177,0.08676,41103.0,41034.0,0.11917938]
[1610104839378,0.08676,41103.0,41094.0,0.13632608]
[1610104839778,0.08676,41103.0,41034.0,0.11889]
[1610104840881,1.5,41112.0,41034.0,0.11889]
[1610104841083,2.8842,41102.0,41034.0,0.11889]
[1610104841282,1.5,41101.0,41034.0,0.11889]
[1610104841481,0.13632608,41065.0,41058.0,0.13632608]
[1610104841681,0.24849608,41065.0,41058.0,0.13632608]
[1610104841882,0.24849608,41065.0,41006.0,0.2759]
[1610104843485,0.13632608,41048.0,41006.0,0.2759]
[1610104843682,0.21953608,41048.0,40987.0,2.21675045]
[1610104843882,0.21953608,41048.0,40986.0,0.01]
[1610104844085,0.21953608,41048.0,40988.0,0.00028964]
[1610104844283,0.21953608,41048.0,40988.0,0.09027]
[1610104844885,1.5,41047.0,40988.0,0.09027]
[1610104845489,1.5,41047.0,41020.0,0.13632608]
[1610104845885,1.5,41046.0,41020.0,0.13632608]
[1610104846086,0.08321,41048.0,41020.0,0.13632608]
[1610104847590,0.08321,41048.0,41039.0,0.13632608]
[1610104848591,3.2279,41049.0,41039.0,0.13632608]
[1610104848790,3.8961,41084.0,41039.0,0.13632608]
[1610104849191,5.3961,41084.0,41039.0,0.13632608]
[1610104849390,5.3961,41084.0,41053.0,0.13632608]
[1610104849590,5.3961,41084.0,41008.0,0.09309]
[1610104849790,0.40387,41081.0,41008.0,0.09309]
[1610104851191,0.40387,41081.0,41009.0,0.00029035]
[1610104851594,0.13632608,41058.0,41053.0,0.13632608]
[1610104851793,0.24655608,41058.0,41053.0,0.13632608]
[1610104851993,0.24655608,41058.0,41008.0,0.09309]
[1610104852594,0.24655608,41058.0,41009.0,0.00029036]
[1610104852794,0.11023,41058.0,41009.0,0.00029036]
[1610104853593,0.11023,41058.0,41057.0,0.13632608]
[1610104854593,0.10755939,41048.0,41029.0,0.10283]
[1610104855597,0.10755939,41048.0,41047.0,0.13632608]
[1610104856897,0.10755939,41048.0,41029.0,0.10283]
[1610104857297,0.22700939,41048.0,41029.0,0.10283]
[1610104857498,0.13632608,41045.0,41042.0,0.13632608]
[1610104858099,0.13632608,41045.0,41008.0,0.09309]
[1610104858299,0.13632608,41045.0,40998.0,0.2894]
[1610104858499,0.13632608,41045.0,41009.0,0.00029039]
[1610104858699,0.22700939,41048.0,41009.0,0.12609039]
[1610104858898,0.22700939,41048.0,41009.0,0.1258]
[1610104859099,0.22700939,41048.0,41010.0,0.00029039]
[1610104859500,0.22700939,41048.0,41047.0,0.13632608]
[1610104861500,0.36333547,41048.0,41047.0,0.13632608]
[1610104861902,0.36333547,41048.0,41010.0,0.1569]
[1610104862301,0.36333547,41048.0,41011.0,0.00029041]
[1610104863301,0.79003547,41048.0,41011.0,0.00029041]
[1610104863501,0.13632608,41020.0,41014.0,0.13632608]
[1610104863701,0.23528608,41020.0,41014.0,0.13632608]
[1610104863901,0.23528608,41020.0,41015.0,0.00029047]
[1610104866503,0.09896,41020.0,41015.0,0.00029047]
[1610104868804,0.13632608,41025.0,41015.0,0.00029047]
[1610104869404,0.13632608,41025.0,40992.0,0.00029055]
[1610104869605,3.0,41042.0,41019.0,0.13632608]
[1610104870205,3.0,41042.0,41020.0,0.00029054]
[1610104871407,5.4543,41042.0,41020.0,0.00029054]
[1610104871606,0.13632608,41021.0,41020.0,0.00029054]
[1610104871805,0.23391608,41021.0,41020.0,0.00029054]
[1610104872007,0.23391608,41021.0,41009.0,0.13632608]
[1610104872008,0.23391608,41021.0,41010.0,0.00029054]
[1610104872207,0.23391608,41021.0,41020.0,0.00029054]
[1610104872610,0.23391608,41021.0,41009.0,0.13632608]
[1610104872611,0.23391608,41021.0,41010.0,0.00029056]
[1610104872811,0.23391608,41021.0,40991.0,0.0065]
[1610104873011,0.23391608,41021.0,41015.0,0.0421]
[1610104873712,0.13632608,41016.0,41015.0,0.0421]
[1610104873912,0.56142608,41016.0,40991.0,0.0065]
[1610104874112,0.13632608,41016.0,40991.0,0.0065]
[1610104874312,3.3883,41010.0,40991.0,0.0065]
[1610104874512,3.47295,41010.0,40992.0,0.00029062]
[1610104874712,4.97295,41010.0,40992.0,0.00029062]
[1610104875112,1.58465,41010.0,40957.0,0.11992]
[1610104875313,3.5222,41003.0,40957.0,0.11992]
[1610104875512,3.5222,41003.0,40939.0,0.1569]
[1610104875513,1.5,41002.0,40987.0,0.00029065]
[1610104875712,0.13632608,40988.0,40987.0,0.00029065]
[1610104875915,0.22406608,40988.0,40987.0,0.00029065]
[1610104876112,0.22406608,40988.0,40939.0,0.1569]
[1610104876812,0.22406608,40988.0,40940.0,0.03015843]
[1610104877614,0.13632608,40978.0,40972.0,0.13632608]
[1610104877914,0.25009608,40978.0,40972.0,0.13632608]
[1610104880822,0.25009608,40978.0,40939.0,0.1569]
[1610104881324,0.25009608,40978.0,40940.0,0.00029069]
[1610104881624,0.13632608,40969.0,40966.0,0.13632608]
[1610104881824,0.23238608,40969.0,40966.0,0.13632608]
[1610104883528,0.23238608,40969.0,40939.0,0.1569]
[1610104883726,0.13632608,40964.0,40957.0,0.13632608]
[1610104883927,0.09606,40969.0,40957.0,0.13632608]
[1610104884327,0.09606,40969.0,40958.0,0.00029072]
[1610104885730,0.09606,40969.0,40968.0,0.13632608]
[1610104885930,0.11377,40978.0,40968.0,0.13632608]
[1610104886132,2.9247,40980.0,40968.0,0.13632608]
[1610104886931,2.9247,40980.0,40969.0,0.00029066]
[1610104887633,2.9247,40980.0,40979.0,0.13632608]
[1610104888434,0.08774,40988.0,40979.0,0.13632608]
[1610104888635,0.13632608,40995.0,40979.0,0.13632608]
[1610104889636,0.08465,41010.0,40994.0,0.13632608]
[1610104889836,0.13632608,41012.0,40994.0,0.13632608]
[1610104890436,8.1,41042.0,40994.0,0.13632608]
[1610104890636,8.1,41042.0,40995.0,0.02]
[1610104891438,0.00029859,41041.0,40996.0,0.00029059]
[1610104891637,0.13632608,41024.0,41017.0,0.13632608]
[1610104892037,0.23901608,41024.0,40996.0,0.00029059]
[1610104892237,0.23901608,41024.0,40995.0,0.02]
[1610104892438,0.23901608,41024.0,40997.0,0.00029058]
[1610104892638,0.23901608,41024.0,40996.0,0.00029058]
[1610104893640,0.10269,41024.0,41022.0,0.13632608]
[1610104894240,0.10269,41024.0,40995.0,0.02]
[1610104894642,0.10269,41024.0,40996.0,0.00029056]
[1610104895643,0.10269,41024.0,41023.0,0.13632608]
[1610104896045,0.10269,41024.0,41023.0,0.13661661]
[1610104897047,0.10918,41041.0,41023.0,0.13661661]
[1610104897447,5.0,41042.0,41024.0,0.00029033]
[1610104897647,5.0,41042.0,41035.0,0.13632608]
[1610104898447,5.0,41042.0,41036.0,0.0002903]
[1610104900449,5.1203,41042.0,41009.0,0.00029025]
[1610104900649,5.1203,41042.0,40999.0,0.10482]
[1610104900650,5.1203,41042.0,41037.0,0.00029025]
[1610104900849,5.1203,41042.0,41010.0,0.00029027]
[1610104901249,5.1203,41042.0,41038.0,0.00029027]
[1610104901449,5.1203,41042.0,41000.0,0.02984483]
[1610104901450,5.1203,41042.0,41011.0,0.00029025]
[1610104901651,5.1203,41042.0,41039.0,0.00029023]
[1610104901851,5.1203,41042.0,41041.0,0.13632608]
[1610104902250,5.1203,41042.0,41041.0,0.13661626]
[1610104902651,4.821,41042.0,41041.0,0.13661626]
[1610104904352,4.7007,41042.0,41041.0,0.13661626]
[1610104904952,4.17582624,41042.0,41041.0,0.13661626]
[1610104905958,3.64952624,41042.0,41041.0,0.13661626]
[1610104906157,3.64952624,41042.0,41041.0,1.63661626]
[1610104907161,3.34872624,41042.0,41041.0,0.13661626]
[1610104908359,3.34872624,41042.0,41041.0,1.63661626]
[1610104908559,3.22922624,41042.0,41041.0,1.63661626]
[1610104908959,2.48442251,41042.0,41041.0,1.63661626]
[1610104911662,2.11842251,41042.0,41041.0,1.63661626]
[1610104912063,1.67165225,41042.0,41041.0,1.63661626]
[1610104913263,1.37381894,41042.0,41041.0,1.63661626]
[1610104913462,0.91552894,41042.0,41041.0,1.63661626]
[1610104913664,0.31987786,41042.0,41041.0,1.63661626]
[1610104915068,0.07958,41101.0,41041.0,1.63661626]
[1610104915467,0.07958,41101.0,41042.0,0.0002896]
[1610104915668,0.07958,41101.0,41042.0,2.23821491]
[1610104915868,0.07958,41101.0,41100.0,0.13632608]
[1610104916268,0.07958,41101.0,41079.0,0.12503]
[1610104917669,3.4529,41130.0,41079.0,0.12503]
[1610104917670,0.2964,41135.0,41079.0,0.12503]
[1610104917871,0.13632608,41130.0,41123.0,0.13632608]
[1610104918671,0.2964,41135.0,41123.0,0.13632608]
[1610104919775,0.2964,41135.0,41134.0,0.13632608]
[1610104923677,3.268,41175.0,41134.0,0.13632608]
[1610104923886,0.2744,41181.0,41163.0,0.13632608]
[1610104924079,0.2744,41181.0,41088.0,0.0934]
[1610104924277,0.39676,41181.0,41079.0,0.12503]
[1610104924480,0.39676,41181.0,41059.0,3.72017845]
[1610104924679,0.39676,41181.0,41080.0,0.00028945]
[1610104924880,0.39676,41181.0,41080.0,0.11312]
[1610104925081,0.39676,41181.0,41081.0,0.00028947]
[1610104925881,0.13632608,41156.0,41153.0,0.13632608]
[1610104926079,0.23909608,41156.0,41153.0,0.13632608]
[1610104927482,0.23909608,41156.0,41080.0,0.11312]
[1610104927884,0.10277,41156.0,41146.0,0.13632608]
[1610104928783,0.10277,41156.0,41101.0,0.10823]
[1610104929189,3.9165,41154.0,41101.0,0.10823]
[1610104929385,3.9165,41154.0,41080.0,0.11312]
[1610104929787,3.9165,41154.0,41042.0,2.24966364]
[1610104929788,0.295,41153.0,41042.0,2.24966364]
[1610104929989,0.295,41153.0,41090.0,0.11841]
[1610104930388,0.0002979,41152.0,41090.0,0.11841]
[1610104930589,0.295,41153.0,41090.0,0.11841]
[1610104930989,0.00029791,41152.0,41090.0,0.11841]
[1610104931589,0.00029791,41152.0,41024.0,1.5]
[1610104931590,0.00029791,41152.0,41038.0,2.25820169]
[1610104931789,3.2606,41133.0,41033.0,2.37441014]
[1610104931989,3.36147,41133.0,41089.0,0.13632608]
[1610104932189,0.000298,41132.0,41068.0,0.09124]
[1610104932389,0.000298,41132.0,41059.0,0.12215]
[1610104932792,1.500298,41132.0,41059.0,0.12215]
[1610104933291,0.00029808,41131.0,41059.0,0.12215]
[1610104933493,0.00029808,41131.0,41024.0,0.2799]
[1610104933698,0.00029808,41131.0,41023.0,0.1569]
[1610104933892,0.0164855,41131.0,41074.0,0.13632608]
[1610104934293,0.0164855,41131.0,41023.0,0.1569]
[1610104934693,2.792,41128.0,41024.0,0.00028979]
[1610104934892,1.5,41127.0,41024.0,0.00028979]
[1610104935095,1.51648741,41127.0,41024.0,0.00028979]
[1610104935294,2.7848,41121.0,41024.0,0.00028979]
[1610104935495,1.7901,41120.0,41024.0,0.00028979]
[1610104935696,1.80658837,41120.0,41024.0,0.00028979]
[1610104935896,0.13632608,41042.0,41038.0,0.13632608]
[1610104936094,0.25410608,41042.0,41038.0,0.13632608]
[1610104936296,0.25410608,41042.0,41039.0,0.00028987]
[1610104936496,0.25410608,41042.0,41012.0,0.3195]
[1610104936898,0.25410608,41042.0,41001.0,0.1569]
[1610104937097,0.25410608,41042.0,41015.0,0.00028989]
[1610104937298,0.11778,41042.0,41015.0,0.00028989]
[1610104937898,0.11778,41042.0,41041.0,0.13632608]
[1610104938900,0.289,41093.0,41041.0,0.13632608]
[1610104939902,0.289,41093.0,41046.0,0.13632608]
[1610104940303,1.50029831,41092.0,41046.0,0.13632608]
[1610104940502,1.61891831,41092.0,41007.0,0.10988]
[1610104940704,0.00029833,41091.0,41007.0,0.10988]
[1610104940902,1.61862,41092.0,41007.0,0.10988]
[1610104941904,1.0,41088.0,41032.0,0.13632608]
[1610104942102,5.0418,41088.0,41032.0,0.13632608]
[1610104944007,4.0418,41088.0,41032.0,0.13632608]
[1610104944210,4.0418,41088.0,41032.0,0.12032608]
[1610104945811,4.0418,41088.0,41033.0,0.1569]
[1610104946011,0.11862,41092.0,41080.0,0.13632608]
[1610104946212,0.11862,41092.0,41080.0,0.12032608]
[1610104946412,0.289,41093.0,41033.0,0.1569]
[1610104946613,0.289,41093.0,41037.0,0.10814]
[1610104948014,0.289,41093.0,41069.0,0.13632608]
[1610104948213,0.289,41093.0,41069.0,0.12032608]
[1610104948414,0.15242812,41088.0,41069.0,0.12032608]
[1610104948814,0.25238812,41088.0,41069.0,0.12032608]
[1610104949915,0.25238812,41088.0,41083.0,0.13632608]
[1610104950115,0.25238812,41088.0,41083.0,0.12032608]
[1610104950317,0.25238812,41088.0,41037.0,0.10814]
[1610104950919,0.25238812,41088.0,41038.0,0.00028979]
[1610104952023,0.25238812,41088.0,41071.0,0.13632608]
[1610104952224,0.25238812,41088.0,41071.0,0.12782608]
[1610104954124,0.25238812,41088.0,41078.0,0.13632608]
[1610104954324,0.25238812,41088.0,41078.0,0.13262608]
[1610104956027,0.13632608,41079.0,41078.0,0.13262608]
[1610104956430,0.25302608,41079.0,41056.0,0.11315]
[1610104956836,0.25302608,41079.0,41057.0,0.00028975]
[1610104957032,0.25302608,41079.0,41056.0,0.11315]
[1610104957528,0.25302608,41079.0,41057.0,0.00029868]
[1610104958132,0.25302608,41079.0,41074.0,0.13632608]
[1610104958732,0.25302608,41079.0,41075.0,0.00029865]
[1610104962132,0.1167,41079.0,41075.0,0.00029865]
[1610104962533,0.25238812,41088.0,41075.0,0.00029865]
[1610104962738,0.25238812,41088.0,41075.0,0.03010622]
[1610104964135,0.25238812,41088.0,41087.0,0.13632608]
[1610104964535,0.25238812,41088.0,41087.0,0.13662455]
[1610104967737,0.25238812,41088.0,41087.0,0.00029847]
[1610104967936,0.25238812,41088.0,41046.0,0.10374]
[1610104968137,0.25238812,41088.0,41072.0,0.13632608]
[1610104968736,0.25238812,41088.0,41073.0,0.00029856]
[1610104969137,0.25238812,41088.0,41046.0,0.10374]
[1610104969138,0.25238812,41088.0,41047.0,0.03010967]
[1610104972039,0.25238812,41088.0,41079.0,0.13632608]
[1610104972438,0.25238812,41088.0,41080.0,0.00029858]
[1610104973438,0.25238812,41088.0,41047.0,0.03010996]
[1610104973639,0.25238812,41088.0,41081.0,0.00029858]
[1610104974039,0.13632608,41082.0,41062.0,0.13632608]
[1610104974442,0.13632608,41082.0,41063.0,0.00029859]
[1610104975239,0.13632608,41082.0,41063.0,0.03011036]
[1610104976144,0.25238812,41088.0,41081.0,0.13632608]
[1610104976542,0.25238812,41088.0,41082.0,0.03010226]
[1610104976743,0.15242812,41088.0,41082.0,0.03010226]
[1610104976942,0.15242812,41088.0,41082.0,1.53010226]
[1610104977342,0.5,41120.0,41083.0,0.03009182]
[1610104977743,0.5,41120.0,41083.0,0.08966948]
[1610104978143,0.5,41120.0,41119.0,0.13632608]
[1610104978746,0.5,41120.0,41119.0,0.13662444]
[1610104978944,0.5,41120.0,41119.0,0.1664046]
[1610104979344,0.5,41120.0,41119.0,1.66640456]
[1610104979545,0.3263,41120.0,41119.0,1.66640456]
[1610104979744,0.3263,41120.0,41119.0,1.6366244]
[1610104980345,0.2764,41178.0,41119.0,1.6366244]
[1610104980544,0.2764,41178.0,41119.0,1.66638492]
[1610104980744,0.2764,41178.0,41120.0,0.00029811]
[1610104981347,0.2764,41178.0,41120.0,1.53005723]
[1610104981545,0.2764,41178.0,41120.0,1.50029811]
[1610104981946,0.2764,41178.0,41121.0,0.00029811]
[1610104982146,0.2764,41178.0,41177.0,0.13632608]
[1610104983548,0.13632608,41183.0,41177.0,0.13632608]
[1610104983748,0.2899,41224.0,41177.0,0.13632608]
[1610104983951,0.5754,41224.0,41177.0,0.13632608]
[1610104984150,0.5754,41224.0,41201.0,0.13632608]
[1610104986254,0.5754,41224.0,41219.0,0.13632608]
[1610104987052,0.2855,41224.0,41219.0,0.13632608]
[1610104988456,0.13632608,41225.0,41219.0,0.13632608]
[1610104988655,0.2801,41257.0,41219.0,0.13632608]
[1610104988856,0.2996,41256.0,41219.0,0.13632608]
[1610104989256,0.37773,41256.0,41219.0,0.13632608]
[1610104990255,0.13632608,41226.0,41207.0,0.12549]
[1610104990456,0.21417608,41226.0,41180.0,0.1239]
[1610104990857,0.21417608,41226.0,41171.0,0.11403]
[1610104991057,0.21417608,41226.0,41142.0,1.5]
[1610104991660,0.21417608,41226.0,41134.0,2.38640935]
[1610104991858,0.2754,41225.0,41135.0,1.5]
[1610104992258,0.2715,41224.0,41219.0,0.13632608]
[1610104993060,0.2754,41225.0,41219.0,0.13632608]
[1610104993460,0.2754,41225.0,41204.0,0.08856]
[1610104994263,0.2754,41225.0,41220.0,0.13632608]
[1610104994961,0.13632608,41230.0,41220.0,0.13632608]
[1610104995761,0.5732,41255.0,41220.0,0.13632608]
[1610104996162,0.5732,41255.0,41249.0,0.13632608]
[1610104998164,0.13632608,41250.0,41249.0,0.13632608]
[1610104998568,0.5732,41255.0,41249.0,0.13632608]
[1610104999367,0.2895,41255.0,41249.0,0.13632608]
[1610105000168,0.2895,41255.0,41234.0,0.10218]
[1610105000169,0.2895,41255.0,41254.0,0.13632608]
[1610105000568,0.2895,41255.0,41234.0,0.10218]
[1610105003271,0.2895,41255.0,41222.0,0.1196]
[1610105003672,0.2895,41255.0,41213.0,0.08249]
[1610105004072,0.2895,41255.0,41204.0,0.08856]
[1610105004271,0.2895,41255.0,41227.0,0.13632608]
[1610105004472,0.2895,41255.0,41221.0,0.11033]
[1610105005873,0.2895,41255.0,41161.0,0.2963]
[1610105006274,0.2895,41255.0,41231.0,0.13632608]
[1610105007275,0.2895,41255.0,41218.0,0.1065]
[1610105008276,0.2895,41255.0,41227.0,0.13632608]
[1610105009277,0.2895,41255.0,41218.0,0.1065]
[1610105009877,0.00029722,41254.0,41218.0,0.1065]
[1610105010277,0.00029722,41254.0,41229.0,0.13632608]
[1610105012279,0.13632608,41230.0,41229.0,0.13632608]
[1610105012481,0.13632608,41230.0,41218.0,0.1065]
[1610105012680,0.13662334,41230.0,41218.0,0.1065]
[1610105012880,0.13662334,41230.0,41161.0,0.2963]
[1610105013081,0.00029726,41229.0,41135.0,0.21635138]
[1610105013281,0.00029726,41229.0,41162.0,0.03002212]
[1610105013480,0.00029726,41229.0,41162.0,0.10014]
[1610105013882,0.00029726,41229.0,41163.0,0.03002197]
[1610105014280,0.13632608,41224.0,41221.0,0.13632608]
[1610105016281,0.13632608,41224.0,41163.0,0.1569]
[1610105016683,0.00029728,41223.0,41164.0,0.03002571]
[1610105017084,0.00029728,41223.0,41163.0,0.03002699]
[1610105017284,0.00029728,41223.0,41165.0,0.00029804]
[1610105017485,0.27599728,41223.0,41164.0,0.00029282]
[1610105017885,0.00029735,41222.0,41163.0,0.00029284]
[1610105018085,1.11259,41215.0,41165.0,0.00029286]
[1610105018288,0.13632608,41174.0,41169.0,0.13632608]
[1610105018486,0.08401,41177.0,41169.0,0.13632608]
[1610105018886,0.08401,41177.0,41170.0,0.00029288]
[1610105020291,0.13632608,41171.0,41159.0,0.13632608]
[1610105020489,0.0735,41170.0,41159.0,0.13632608]
[1610105020690,0.0735,41170.0,41160.0,0.00029297]
[1610105021292,0.0735,41170.0,41140.0,0.11657]
[1610105022291,0.0735,41170.0,41139.0,0.0201]
[1610105022292,0.13632608,41141.0,41139.0,0.0201]
[1610105023394,0.0727,41140.0,41139.0,0.0201]
[1610105023593,0.13632608,41141.0,41139.0,0.0201]
[1610105024597,0.08141,41145.0,41139.0,0.0201]
[1610105024797,0.08141,41145.0,41139.0,0.0041]
[1610105026198,0.072,41159.0,41139.0,0.0041]
[1610105026399,0.13632608,41167.0,41144.0,0.13632608]
[1610105028203,0.13632608,41167.0,41166.0,0.13632608]
[1610105028604,0.13632608,41167.0,41143.0,0.10519]
[1610105029005,0.24344608,41167.0,41139.0,0.0041]
[1610105030204,0.10712,41167.0,41140.0,0.13632608]
[1610105032307,0.13632608,41141.0,41140.0,0.13632608]
[1610105032511,0.12024,41147.0,41140.0,0.13632608]
[1610105032708,0.12024,41147.0,41140.0,0.11242608]
[1610105033308,0.12024,41147.0,41140.0,0.21399608]
[1610105033510,0.0721,41164.0,41140.0,0.21399608]
[1610105034609,0.0721,41164.0,41163.0,0.13632608]
[1610105034809,0.10712,41167.0,41163.0,0.13632608]
[1610105035009,0.2887,41168.0,41163.0,0.13632608]
[1610105035410,0.2887,41168.0,41140.0,0.10157]
[1610105035613,0.39239,41168.0,41140.0,0.10157]
[1610105036412,0.13632608,41144.0,41140.0,0.23789608]
[1610105039614,0.13632608,41144.0,41124.0,0.1145]
[1610105040020,0.74987608,41144.0,41125.0,0.00029332]
[1610105040415,0.13632608,41126.0,41116.0,0.00029338]
[1610105041417,0.61355,41144.0,41116.0,0.00029338]
[1610105041616,0.09145,41144.0,41116.0,0.00029338]
[1610105042016,0.09145,41144.0,41102.0,0.13632608]
[1610105042415,0.09145,41144.0,41116.0,0.00029335]
[1610105042817,0.09145,41144.0,41103.0,0.03006413]
[1610105043618,0.12388,41159.0,41103.0,0.03006413]
[1610105044018,2.9975,41199.0,41103.0,0.15001413]
[1610105044418,0.0723,41167.0,41104.0,0.00029324]
[1610105044619,2.9975,41199.0,41104.0,0.00029324]
[1610105045419,0.072,41174.0,41104.0,0.00029324]
[1610105045620,2.9975,41199.0,41104.0,0.00029324]
[1610105045824,2.9975,41199.0,41104.0,0.0598008]
[1610105046021,0.0721,41174.0,41105.0,2.46539681]
[1610105046219,2.9975,41199.0,41106.0,1.5]
[1610105046419,0.0722,41167.0,41105.0,2.46539681]
[1610105046620,0.0722,41167.0,41107.0,0.08954886]
[1610105046820,0.0722,41167.0,41107.0,0.00029316]
[1610105047020,0.0722,41167.0,41108.0,0.00029318]
[1610105047220,0.0722,41167.0,41108.0,0.03004659]
[1610105047421,0.0722,41167.0,41108.0,0.02975341]
[1610105047620,0.0722,41167.0,41109.0,0.03004889]
[1610105048223,0.0722,41167.0,41109.0,0.0002932]
[1610105048422,0.0722,41167.0,41110.0,0.0002932]
[1610105048624,0.08514,41185.0,41110.0,0.0002932]
[1610105048822,0.08514,41185.0,41110.0,0.02975579]
[1610105049023,0.08514,41185.0,41097.0,2.32064429]
[1610105049224,0.13632608,41121.0,41118.0,0.13632608]
[1610105049623,0.0734,41120.0,41118.0,0.13632608]
[1610105049823,0.0734,41120.0,41119.0,0.03006195]
[1610105050025,0.0726,41130.0,41119.0,0.03006195]
[1610105050224,0.69252659,41216.0,41119.0,0.03006195]
[1610105050425,1.5,41196.0,41132.0,0.13632608]
[1610105050924,0.072,41174.0,41133.0,0.00029337]
[1610105051127,0.072,41174.0,41120.0,0.08126]
[1610105051325,0.0726,41163.0,41120.0,0.08126]
[1610105051526,0.0726,41163.0,41121.0,0.03006555]
[1610105051726,0.77292908,41216.0,41121.0,0.03006555]
[1610105051926,1.5,41175.0,41121.0,0.03006555]
[1610105052327,1.5,41175.0,41121.0,0.00029334]
[1610105052527,0.13632608,41122.0,41121.0,0.00029334]
[1610105053527,0.13632608,41122.0,41081.0,0.05954866]
[1610105053729,0.24068608,41122.0,41081.0,0.05954866]
[1610105053928,0.24068608,41122.0,41080.0,0.0896299]
[1610105054329,0.24068608,41122.0,41076.0,0.08963455]
[1610105054528,0.10436,41122.0,41081.0,0.03007664]
[1610105054728,0.10436,41122.0,41079.0,0.12004]
[1610105054930,0.13632608,41080.0,41079.0,0.12004]
[1610105055230,0.13632608,41080.0,41079.0,0.15012071]
[1610105055731,0.10859,41101.0,41079.0,0.15012071]
[1610105055930,0.074,41081.0,41079.0,0.15012071]
[1610105056131,0.074,41081.0,41080.0,0.0300805]
[1610105056334,0.774,41081.0,41080.0,0.0300805]
[1610105056936,0.91032608,41081.0,41080.0,0.00029347]
[1610105058937,0.774,41081.0,41080.0,0.00029347]
[1610105059536,0.91032608,41081.0,41080.0,0.00029347]
[1610105059738,0.98422608,41081.0,41036.0,0.05960692]
[1610105059937,3.1861,41073.0,41036.0,0.05960692]
[1610105060137,3.26408,41073.0,41034.0,0.0897429]
[1610105060338,3.26408,41073.0,41037.0,0.03011353]
[1610105060538,3.26408,41073.0,41037.0,0.07718]
[1610105060938,3.26408,41073.0,41038.0,0.00029379]
[1610105061337,3.26408,41073.0,41037.0,0.07718]
[1610105062139,0.13632608,41038.0,41037.0,0.07718]
[1610105062339,0.11987,41057.0,41037.0,0.07718]
[1610105062538,0.11987,41057.0,41032.0,0.13632608]
[1610105062738,0.11987,41057.0,41027.0,0.1132]
[1610105063540,0.11987,41057.0,41028.0,0.00029384]
[1610105063739,0.07798,41073.0,41028.0,0.15719384]
[1610105064142,0.07798,41073.0,41058.0,0.13632608]
[1610105064540,0.07798,41073.0,41050.0,0.11245]
[1610105065140,1.0646,41081.0,41050.0,0.11245]
[1610105066142,1.0646,41081.0,41063.0,0.13632608]
[1610105066342,1.0646,41081.0,41050.0,0.11245]
[1610105067145,3.1924,41077.0,41050.0,0.11245]
[1610105067345,3.1924,41077.0,41027.0,0.1132]
[1610105067746,3.1924,41077.0,41007.0,0.1569]
[1610105068146,3.1924,41077.0,41008.0,0.00029377]
[1610105068547,3.1924,41077.0,41008.0,0.07836377]
[1610105068946,3.1924,41077.0,41009.0,0.00029381]
[1610105069555,1.0646,41081.0,41009.0,0.00029381]
[1610105070158,0.774,41081.0,41080.0,0.13632608]
[1610105070959,0.774,41081.0,41080.0,0.24013608]
[1610105072150,0.774,41081.0,41080.0,0.10381]
[1610105072549,0.774,41081.0,41080.0,0.24013608]
[1610105073349,0.47616062,41081.0,41080.0,0.24013608]
[1610105074551,0.47616062,41081.0,41080.0,0.10381]
[1610105075048,0.47616062,41081.0,41080.0,0.24013608]
[1610105075450,0.02960752,41081.0,41080.0,0.24013608]
[1610105076250,0.08507,41142.0,41080.0,0.24042943]